bitfinex/quotes_BTCUSD_20250505
["timestamp","ask_amount","ask_price","bid_price","bid_amount"]
[1746454600259,0.22283411,94241.0,94238.0,0.21222757]
[1746454600402,0.01061109,94241.0,94238.0,0.21222757]
[1746454600804,0.02724877,94241.0,94239.0,0.21222551]
[1746454601040,0.02724877,94241.0,94240.0,0.4]
[1746454601968,0.02724877,94241.0,94240.0,0.41454085]
[1746454602517,0.02724877,94241.0,94240.0,0.41554085]
[1746454603786,0.02724877,94241.0,94240.0,0.41754085]
[1746454604254,0.23947062,94241.0,94240.0,0.41754085]
[1746454604680,0.27147062,94241.0,94240.0,0.403]
[1746454605098,0.27147062,94241.0,94240.0,0.003]
[1746454606544,0.25483294,94241.0,94240.0,0.003]
[1746454606881,0.25483294,94241.0,94233.0,0.4]
[1746454606882,0.21223762,94234.0,94233.0,0.41054085]
[1746454607085,0.21223762,94234.0,94233.0,0.01454085]
[1746454607302,0.01061109,94241.0,94236.0,0.01454085]
[1746454607547,0.01061052,94246.0,94237.0,0.01061154]
[1746454607762,0.22283393,94241.0,94238.0,0.01454085]
[1746454608146,0.21223369,94236.0,94234.0,0.01454085]
[1746454608323,0.21223536,94235.0,94232.0,0.01454085]
[1746454608458,0.01061131,94239.0,94237.0,0.22677052]
[1746454608666,0.0106112,94240.0,94237.0,0.01454085]
[1746454608871,0.21221964,94242.0,94237.0,0.01454085]
[1746454609081,0.002,94269.0,94241.0,0.01061109]
[1746454609285,0.01060929,94257.0,94255.0,0.01454085]
[1746454609494,0.01060951,94255.0,94251.0,0.01454085]
[1746454609714,0.0106094,94256.0,94252.0,0.01454085]
[1746454609715,0.21218841,94256.0,94252.0,0.01454085]
[1746454609930,0.2227962,94257.0,94255.0,0.01454085]
[1746454610143,0.2227962,94257.0,94256.0,0.41454085]
[1746454610555,0.01709353,94259.0,94257.0,0.22672606]
[1746454610766,0.01709353,94259.0,94258.0,0.22572443]
[1746454610977,0.01709353,94259.0,94258.0,0.01454085]
[1746454611587,0.01709353,94259.0,94258.0,0.02415731]
[1746454611794,0.01709353,94259.0,94258.0,0.01354085]
[1746454613205,0.01709353,94259.0,94258.0,0.41354085]
[1746454613608,0.01709353,94259.0,94258.0,0.42396114]
[1746454614069,0.01709353,94259.0,94239.0,0.21222572]
[1746454614285,0.22280378,94254.0,94253.0,0.00754085]
[1746454614600,0.22280378,94254.0,94253.0,0.01800377]
[1746454614802,0.22280378,94254.0,94253.0,0.00754085]
[1746454615025,0.21219708,94252.0,94251.0,0.4]
[1746454616087,0.21219708,94252.0,94251.0,0.41454085]
[1746454617660,0.21219708,94252.0,94251.0,0.41554085]
[1746454618536,0.21219708,94252.0,94251.0,0.01554085]
[1746454620177,0.21219708,94252.0,94251.0,0.41554085]
[1746454621024,0.22883085,94253.0,94252.0,0.01454085]
[1746454621228,0.22883085,94253.0,94252.0,0.00754085]
[1746454621438,0.01663545,94253.0,94251.0,0.001]
[1746454621615,0.01663545,94253.0,94252.0,0.21219708]
[1746454622174,0.01663545,94253.0,94252.0,0.63204342]
[1746454622371,0.01663545,94253.0,94252.0,0.63304342]
[1746454622831,0.22883028,94253.0,94252.0,0.42084634]
[1746454623031,0.22883028,94253.0,94252.0,0.001]
[1746454623214,0.22883028,94253.0,94252.0,0.01554085]
[1746454623619,0.24523028,94253.0,94252.0,0.01554085]
[1746454624188,0.26153028,94253.0,94252.0,0.001]
[1746454624544,0.23665983,94253.0,94252.0,0.001]
[1746454624731,0.21220384,94249.0,94248.0,0.4]
[1746454624929,0.24400384,94249.0,94248.0,0.4]
[1746454625149,0.24400384,94249.0,94242.0,0.41454085]
[1746454625150,0.21221735,94243.0,94242.0,0.41454085]
[1746454625621,0.21221735,94243.0,94242.0,0.4]
[1746454625796,0.22751735,94243.0,94242.0,0.4]
[1746454625996,0.22751735,94243.0,94239.0,0.414]
[1746454626243,0.21223086,94237.0,94236.0,0.4]
[1746454626622,0.21223086,94237.0,94236.0,0.41064346]
[1746454627487,0.21222861,94238.0,94236.0,0.41064346]
[1746454627700,0.01061131,94239.0,94236.0,0.41164346]
[1746454627903,0.21223086,94237.0,94236.0,0.41164346]
[1746454628543,0.21223086,94237.0,94236.0,0.41364346]
[1746454628866,0.21223086,94237.0,94236.0,0.43353559]
[1746454629251,0.21223086,94237.0,94236.0,0.42389213]
[1746454629636,0.21223086,94237.0,94236.0,0.404]
[1746454630276,0.25986981,94237.0,94236.0,0.404]
[1746454630810,0.6103665,94237.0,94236.0,0.404]
[1746454631016,0.6103665,94237.0,94236.0,0.403]
[1746454631236,0.6103665,94237.0,94236.0,0.003]
[1746454631443,0.21226239,94223.0,94222.0,0.04987749]
[1746454631647,0.24276239,94223.0,94222.0,0.04987749]
[1746454632053,0.25940513,94223.0,94222.0,0.04987749]
[1746454632671,0.25946811,94223.0,94222.0,0.05187749]
[1746454633240,0.25946811,94223.0,94222.0,0.04487749]
[1746454634176,0.25946811,94223.0,94222.0,0.04287749]
[1746454634551,0.26046811,94223.0,94222.0,0.04287749]
[1746454634706,0.22996811,94223.0,94222.0,0.04287749]
[1746454634912,0.01770572,94223.0,94222.0,0.25514214]
[1746454635117,0.01770572,94223.0,94212.0,0.0953462]
[1746454635118,0.01061334,94221.0,94220.0,0.4]
[1746454637696,0.01167609,94223.0,94220.0,0.4]
[1746454637900,0.22289156,94217.0,94214.0,0.01454085]
[1746454638074,2.6,94220.0,94214.0,0.22682127]
[1746454638237,2.6,94220.0,94219.0,0.21227141]
[1746454638645,2.6,94220.0,94214.0,0.01454085]
[1746454638846,0.01061368,94218.0,94216.0,0.21227782]
[1746454639070,0.21228042,94215.0,94212.0,0.01454085]
[1746454639274,0.01061402,94215.0,94212.0,0.22682781]
[1746454639478,0.2228874,94218.0,94216.0,0.21227778]
[1746454639677,2.6,94220.0,94216.0,0.21227778]
[1746454639678,2.81226929,94220.0,94216.0,0.21227778]
[1746454639856,2.81226929,94220.0,94219.0,0.001]
[1746454640057,2.82288274,94220.0,94219.0,0.001]
[1746454640270,2.83952479,94220.0,94219.0,0.001]
[1746454640500,0.21228042,94215.0,94214.0,0.40854085]
[1746454640719,0.01061379,94217.0,94214.0,0.394]
[1746454640936,0.01061368,94218.0,94215.0,0.21228042]
[1746454641073,0.01061357,94219.0,94216.0,0.21227813]
[1746454641295,0.21228042,94215.0,94214.0,0.40854085]
[1746454641482,0.01061368,94218.0,94214.0,0.394]
[1746454641677,0.21228042,94215.0,94214.0,0.40854085]
[1746454641888,0.2228897,94217.0,94216.0,0.001]
[1746454642090,2.61664205,94220.0,94219.0,0.21227141]
[1746454642297,2.61664205,94220.0,94219.0,0.22681226]
[1746454642716,2.61664205,94220.0,94219.0,0.01454085]
[1746454643154,2.61664205,94220.0,94219.0,0.62681226]
[1746454643361,2.61664205,94220.0,94219.0,0.41454085]
[1746454643739,2.8289112,94220.0,94219.0,0.41454085]
[1746454645361,2.8289112,94220.0,94219.0,0.4]
[1746454645568,2.8441112,94220.0,94219.0,0.4]
[1746454646133,2.8441112,94220.0,94219.0,0.002]
[1746454646362,2.8441112,94220.0,94219.0,0.004]
[1746454646598,0.21227591,94217.0,94216.0,0.4]
[1746454648623,0.21227591,94217.0,94216.0,0.403]
[1746454649600,0.21227591,94217.0,94216.0,0.405]
[1746454650438,0.2289185,94217.0,94216.0,0.405]
[1746454650868,0.2603185,94217.0,94216.0,0.405]
[1746454651262,0.2603185,94217.0,94216.0,0.005]
[1746454652641,0.2603185,94217.0,94216.0,0.002]
[1746454653066,0.21230295,94205.0,94204.0,0.414]
[1746454653269,0.22290637,94210.0,94205.0,0.01454085]
[1746454653464,0.22290637,94210.0,94204.0,0.414]
[1746454653465,0.01061458,94210.0,94208.0,0.01454085]
[1746454653666,0.01664322,94209.0,94208.0,0.01454085]
[1746454653928,0.22893716,94209.0,94207.0,0.01454085]
[1746454654070,0.21229786,94208.0,94207.0,0.01454085]
[1746454654272,0.21230116,94206.0,94205.0,0.01454085]
[1746454654515,0.01664322,94209.0,94208.0,0.22683704]
[1746454654660,0.01664322,94209.0,94208.0,0.01454085]
[1746454654861,0.01664322,94209.0,94208.0,0.22683704]
[1746454655122,0.01664322,94209.0,94208.0,0.62683704]
[1746454656112,0.01664322,94209.0,94208.0,0.65813704]
[1746454656312,2.6,94220.0,94219.0,0.25811226]
[1746454657586,2.6,94220.0,94219.0,0.26511226]
[1746454658271,2.6,94220.0,94219.0,0.66511226]
[1746454660461,2.6,94220.0,94219.0,0.71294316]
[1746454661927,2.6,94220.0,94219.0,1.35294316]
[1746454662949,2.6,94220.0,94219.0,1.34894316]
[1746454663153,1.96115293,94220.0,94219.0,1.81994316]
[1746454663357,1.80227702,94220.0,94219.0,1.81994316]
[1746454663741,1.78077702,94220.0,94219.0,1.81994316]
[1746454663923,1.78077702,94220.0,94219.0,1.81991174]
[1746454664125,1.78077702,94220.0,94219.0,1.82691174]
[1746454664327,1.54599012,94220.0,94219.0,1.83191174]
[1746454664657,1.54599012,94220.0,94219.0,1.82691174]
[1746454664826,1.52469012,94220.0,94219.0,1.82691174]
[1746454665019,1.47149972,94220.0,94219.0,1.83291174]
[1746454665222,1.41830932,94220.0,94219.0,1.83291174]
[1746454665424,1.23323852,94220.0,94219.0,1.83291174]
[1746454665637,1.23323852,94220.0,94219.0,1.52241174]
[1746454665855,1.23323852,94220.0,94219.0,1.55509948]
[1746454666059,1.23323852,94220.0,94219.0,1.39607089]
[1746454666290,1.23323852,94220.0,94219.0,1.73607089]
[1746454666520,1.23323852,94220.0,94219.0,1.39607089]
[1746454666984,1.23323852,94220.0,94219.0,1.72907089]
[1746454667365,1.23323852,94220.0,94219.0,1.74261174]
[1746454667777,1.23323852,94220.0,94219.0,1.74761174]
[1746454669476,1.23323852,94220.0,94219.0,1.69978084]
[1746454671596,1.23323852,94220.0,94219.0,1.73198084]
[1746454672670,1.23323852,94220.0,94219.0,1.72698084]
[1746454672812,1.23323852,94220.0,94219.0,1.73298084]
[1746454673014,1.23323852,94220.0,94219.0,1.72798084]
[1746454673224,1.18004289,94220.0,94219.0,1.77798084]
[1746454673449,1.15765289,94220.0,94219.0,1.78398084]
[1746454674137,1.09782727,94220.0,94219.0,1.77798084]
[1746454674439,0.80661203,94220.0,94219.0,1.77798084]
[1746454674621,0.80661203,94220.0,94219.0,1.94683477]
[1746454674622,0.53803568,94220.0,94219.0,1.94683477]
[1746454674828,0.38559647,94220.0,94219.0,1.94683477]
[1746454675039,0.27447328,94220.0,94219.0,2.29787477]
[1746454675249,0.00938752,94279.0,94278.0,0.21213856]
[1746454675490,0.00938752,94279.0,94278.0,0.22667941]
[1746454675730,0.02602084,94279.0,94278.0,0.01454085]
[1746454675946,0.00938752,94279.0,94278.0,0.01454085]
[1746454677442,0.01060602,94286.0,94278.0,0.21213631]
[1746454677861,0.01060602,94286.0,94280.0,0.21213406]
[1746454678069,0.01060614,94285.0,94282.0,0.21212796]
[1746454678361,0.01060614,94285.0,94278.0,0.001]
[1746454678362,0.0308,94287.0,94283.0,0.21212731]
[1746454678508,0.25352787,94286.0,94283.0,0.21212731]
[1746454678836,0.22272787,94286.0,94283.0,0.21212731]
[1746454679062,0.01060625,94284.0,94281.0,0.4]
[1746454679295,0.015,94282.0,94281.0,0.4]
[1746454679521,0.0308,94282.0,94281.0,0.4]
[1746454680184,0.0106067,94280.0,94277.0,0.42482883]
[1746454680415,0.21214081,94277.0,94276.0,0.4]
[1746454680631,0.24414081,94277.0,94276.0,0.4]
[1746454680857,0.032,94277.0,94276.0,0.4]
[1746454681061,0.0486321,94277.0,94275.0,0.414]
[1746454681281,0.0162,94276.0,94275.0,0.42854085]
[1746454681771,0.0166321,94277.0,94276.0,0.22668391]
[1746454682461,0.0166321,94277.0,94276.0,0.62668391]
[1746454682703,0.0166321,94277.0,94276.0,0.63717509]
[1746454682951,0.0166321,94277.0,94276.0,0.93717509]
[1746454683885,0.0166321,94277.0,94276.0,0.93917509]
[1746454684585,0.0166321,94277.0,94276.0,0.95257509]
[1746454684838,0.0166321,94277.0,94276.0,1.29757509]
[1746454685078,0.0319,94313.0,94288.0,0.86665691]
[1746454685338,0.01662881,94296.0,94288.0,0.88185691]
[1746454685579,0.01662881,94296.0,94288.0,0.88285691]
[1746454685794,0.01662881,94296.0,94288.0,0.93285691]
[1746454686009,0.01060243,94318.0,94288.0,0.93285691]
[1746454686266,0.01060198,94322.0,94288.0,1.34215691]
[1746454686511,1e-08,94289.0,94288.0,1.34215691]
[1746454686716,1e-08,94289.0,94288.0,1.34615691]
[1746454687160,0.01060141,94327.0,94308.0,0.22661193]
[1746454687395,0.01060164,94325.0,94308.0,0.64061193]
[1746454687598,0.00213714,94309.0,94308.0,0.64061193]
[1746454688227,0.00213714,94309.0,94308.0,1.04061193]
[1746454689026,0.00213714,94309.0,94308.0,1.04261193]
[1746454689578,0.00213714,94309.0,94308.0,0.62861193]
[1746454689782,0.00213714,94309.0,94308.0,1.04261193]
[1746454690270,0.00213714,94309.0,94308.0,1.38461193]
[1746454690515,0.00213714,94309.0,94308.0,1.40211193]
[1746454691028,0.00213714,94309.0,94308.0,1.40011193]
[1746454691282,0.00213714,94309.0,94308.0,1.40311193]
[1746454691782,0.00213714,94309.0,94308.0,1.17154085]
[1746454692026,0.00213714,94309.0,94308.0,1.38361193]
[1746454692263,0.00213714,94309.0,94308.0,1.38061193]
[1746454692734,0.00213714,94309.0,94308.0,1.38561193]
[1746454693622,0.00213714,94309.0,94308.0,1.38961193]
[1746454694141,0.00213714,94309.0,94308.0,1.38561193]
[1746454694596,0.00213714,94309.0,94308.0,1.38961193]
[1746454694832,0.42393445,94355.0,94308.0,1.38961193]
[1746454694833,0.0152,94326.0,94325.0,0.22657371]
[1746454695042,0.0183,94329.0,94328.0,0.22656697]
[1746454696522,0.0183,94329.0,94328.0,0.01454085]
[1746454696730,0.0348,94329.0,94328.0,0.01454085]
[1746454697987,0.0348,94329.0,94328.0,0.01654085]
[1746454698234,0.24682387,94329.0,94328.0,0.002]
[1746454699503,0.21202836,94327.0,94326.0,0.409]
[1746454699706,0.21202836,94327.0,94303.0,0.35076]
[1746454699707,0.24406209,94312.0,94303.0,0.35076]
[1746454700155,0.24358008,94304.0,94303.0,0.35076]
[1746454700980,0.26020673,94304.0,94303.0,0.35076]
[1746454701766,0.04812665,94304.0,94303.0,0.35076]
[1746454701967,0.26020673,94304.0,94303.0,0.35076]
[1746454702325,0.04812665,94304.0,94303.0,0.36530085]
[1746454702486,0.03192665,94304.0,94303.0,0.36530085]
[1746454702694,0.03192665,94304.0,94303.0,0.01454085]
[1746454703152,0.01662665,94304.0,94303.0,0.41454085]
[1746454703551,0.01662665,94304.0,94303.0,0.41654085]
[1746454703904,1.42595447,94300.0,94297.0,0.0213675]
[1746454704123,1.42595447,94300.0,94299.0,0.21208426]
[1746454704753,1.42595447,94300.0,94299.0,0.55208426]
[1746454705280,1.42595447,94300.0,94299.0,0.75208426]
[1746454705860,1.42595447,94300.0,94299.0,0.76662511]
[1746454706564,1.42595447,94300.0,94299.0,0.76862511]
[1746454706773,1.39272901,94300.0,94299.0,0.76862511]
[1746454707540,1.39272901,94300.0,94299.0,0.77562511]
[1746454708178,1.39272901,94300.0,94299.0,0.77162511]
[1746454708379,1.39272901,94300.0,94299.0,0.77262511]
[1746454708699,1.39272901,94300.0,94299.0,0.77562511]
[1746454710652,0.76022816,94300.0,94299.0,0.77566511]
[1746454711550,0.76022816,94300.0,94299.0,0.79116511]
[1746454711735,0.76022816,94300.0,94299.0,0.84116511]
[1746454711910,0.75697855,94300.0,94299.0,0.85046511]
[1746454712507,0.75697855,94300.0,94299.0,0.84746511]
[1746454713655,0.75697855,94300.0,94299.0,0.84246511]
[1746454713854,0.70382875,94300.0,94299.0,1.25546511]
[1746454713984,0.59752915,94300.0,94299.0,1.25546511]
[1746454714206,0.54437935,94300.0,94299.0,1.26146511]
[1746454714390,0.49122955,94300.0,94299.0,1.26146511]
[1746454714586,0.43807975,94300.0,94299.0,1.23266511]
[1746454714780,0.43807975,94300.0,94299.0,1.48166511]
[1746454715061,0.43807975,94300.0,94299.0,1.48066511]
[1746454715180,0.43807975,94300.0,94299.0,1.46912426]
[1746454715381,0.68106882,94300.0,94299.0,0.61704]
[1746454715577,0.46897975,94300.0,94299.0,0.61704]
[1746454715988,0.46897975,94300.0,94299.0,0.60904]
[1746454715989,0.68106882,94300.0,94299.0,0.60904]
[1746454716185,0.68106882,94300.0,94299.0,0.40904]
[1746454716444,0.46897975,94300.0,94299.0,0.40904]
[1746454716846,0.48560677,94300.0,94299.0,0.41504]
[1746454717479,0.48560677,94300.0,94299.0,0.40904]
[1746454717893,0.69769584,94300.0,94299.0,0.41604]
[1746454718107,0.48560677,94300.0,94299.0,0.41604]
[1746454718302,0.69769584,94300.0,94299.0,0.40904]
[1746454718443,0.48560677,94300.0,94299.0,0.40904]
[1746454718641,0.48560677,94300.0,94299.0,0.63667217]
[1746454718844,0.45470677,94300.0,94299.0,0.63667217]
[1746454719366,0.43807975,94300.0,94299.0,0.83667217]
[1746454719711,0.43807975,94300.0,94299.0,0.83567217]
[1746454719861,0.43807975,94300.0,94299.0,1.13567217]
[1746454720063,0.43807975,94300.0,94299.0,1.47667217]
[1746454720536,0.43807975,94300.0,94299.0,1.49227217]
[1746454721523,0.43807975,94300.0,94299.0,1.49427217]
[1746454722083,0.43807975,94300.0,94299.0,1.49727217]
[1746454722375,0.43807975,94300.0,94299.0,1.55195047]
[1746454722562,0.43807975,94300.0,94299.0,1.53635047]
[1746454722946,0.43807975,94300.0,94299.0,1.53535047]
[1746454724034,0.43807975,94300.0,94299.0,1.53035047]
[1746454724292,0.43807975,94300.0,94299.0,1.53335047]
[1746454724931,0.43807975,94300.0,94299.0,1.12435047]
[1746454725094,0.43807975,94300.0,94299.0,1.11435047]
[1746454725476,0.43807975,94300.0,94299.0,0.9997183]
[1746454725477,0.47007975,94300.0,94299.0,0.9997183]
[1746454725818,0.47007975,94300.0,94299.0,1.21680962]
[1746454726318,0.47007975,94300.0,94299.0,1.22635047]
[1746454726521,0.47007975,94300.0,94299.0,1.23135047]
[1746454726661,0.47007975,94300.0,94299.0,1.21680962]
[1746454727087,0.47007975,94300.0,94299.0,1.22635047]
[1746454727485,0.47007975,94300.0,94299.0,1.22335047]
[1746454727892,0.47007975,94300.0,94299.0,1.22435047]
[1746454728121,0.43685292,94300.0,94299.0,1.22435047]
[1746454728325,0.64894199,94300.0,94299.0,0.6577183]
[1746454728740,0.64894199,94300.0,94299.0,0.2487183]
[1746454729140,0.64894199,94300.0,94299.0,0.0517183]
[1746454729298,0.64894199,94300.0,94299.0,0.0195183]
[1746454729730,0.66557011,94300.0,94299.0,0.0155183]
[1746454730087,0.66557011,94300.0,94299.0,0.0165183]
[1746454731809,0.66557011,94300.0,94299.0,0.0095183]
[1746454733367,0.66557011,94300.0,94299.0,0.001]
[1746454733599,0.45348104,94300.0,94299.0,0.001]
[1746454733870,0.66557011,94300.0,94299.0,0.001]
[1746454734527,0.45348104,94300.0,94299.0,0.001]
[1746454734676,0.66557011,94300.0,94299.0,0.001]
[1746454735766,0.45348104,94300.0,94299.0,0.21309132]
[1746454735939,0.45348104,94300.0,94299.0,0.001]
[1746454736147,0.45348104,94300.0,94299.0,0.21309132]
[1746454736345,0.43718104,94300.0,94299.0,0.21309132]
[1746454736576,0.40485292,94300.0,94299.0,0.24746576]
[1746454737308,0.40485292,94300.0,94299.0,0.44646576]
[1746454738185,0.40485292,94300.0,94299.0,0.45637266]
[1746454738390,0.40485292,94300.0,94299.0,0.45635283]
[1746454738591,0.40485292,94300.0,94299.0,0.44644637]
[1746454738798,0.40485292,94300.0,94299.0,0.45635347]
[1746454738972,0.40485292,94300.0,94299.0,0.44644637]
[1746454739179,0.40485292,94300.0,94299.0,0.45635413]
[1746454739377,0.40485292,94300.0,94299.0,0.45835751]
[1746454739989,0.40485292,94300.0,94299.0,0.45635751]
[1746454740217,0.40485292,94300.0,94299.0,0.46035642]
[1746454740752,0.40485292,94300.0,94299.0,0.46235715]
[1746454740958,0.42147924,94300.0,94299.0,0.46235715]
[1746454741252,0.42147924,94300.0,94299.0,0.76235715]
[1746454743365,0.42147924,94300.0,94299.0,1.10235715]
[1746454743591,0.42147924,94300.0,94299.0,1.10235877]
[1746454744557,0.42147924,94300.0,94299.0,1.10335877]
[1746454744758,0.42147924,94300.0,94299.0,1.10135877]
[1746454744966,0.42147924,94300.0,94299.0,1.09935877]
[1746454745177,0.42147924,94300.0,94299.0,1.10035877]
[1746454745375,0.42147924,94300.0,94299.0,1.10335877]
[1746454745605,0.42147924,94300.0,94299.0,1.09345101]
[1746454745835,0.42147924,94300.0,94299.0,1.08745101]
[1746454746039,0.42147924,94300.0,94299.0,1.09245101]
[1746454746381,0.40485292,94300.0,94299.0,1.53245101]
[1746454746819,0.40485292,94300.0,94299.0,1.58245101]
[1746454747057,0.272399,94300.0,94299.0,1.58245101]
[1746454747397,0.12400298,94300.0,94299.0,1.58545101]
[1746454747574,0.05315202,94300.0,94299.0,1.58545101]
[1746454747773,3.83e-06,94300.0,94299.0,1.58545101]
[1746454748199,0.22259962,94340.0,94328.0,0.22656697]
[1746454748399,0.01059995,94340.0,94328.0,0.65538581]
[1746454749145,0.01060085,94332.0,94328.0,0.85538581]
[1746454749394,0.0179,94329.0,94328.0,0.85537702]
[1746454749535,0.0179,94329.0,94328.0,0.6443509]
[1746454749737,0.03452193,94329.0,94328.0,0.86717915]
[1746454750143,0.03452193,94329.0,94328.0,0.66717915]
[1746454750340,0.2630458,94329.0,94328.0,0.44061218]
[1746454750825,0.05102193,94329.0,94328.0,0.44061218]
[1746454751027,0.2630458,94329.0,94328.0,0.44061218]
[1746454751251,0.2630458,94329.0,94328.0,0.42981005]
[1746454751976,0.2630458,94329.0,94328.0,0.41]
[1746454752770,0.05102193,94329.0,94328.0,0.41]
[1746454752927,0.01862193,94329.0,94328.0,0.63656697]
[1746454753133,0.01862193,94329.0,94328.0,0.42756697]
[1746454753450,0.01862193,94329.0,94328.0,0.83656697]
[1746454753785,0.01862193,94329.0,94328.0,0.83556697]
[1746454753987,0.01862193,94329.0,94328.0,1.17556697]
[1746454754133,0.01862193,94329.0,94328.0,1.19535898]
[1746454755163,0.01862193,94329.0,94328.0,1.19735898]
[1746454755372,0.01862193,94329.0,94328.0,1.20035898]
[1746454755947,0.01862193,94329.0,94328.0,1.19735898]
[1746454756133,0.01862193,94329.0,94328.0,1.21685898]
[1746454756538,0.002,94329.0,94328.0,1.19935898]
[1746454758133,0.002,94329.0,94328.0,1.20135898]
[1746454759310,0.002,94329.0,94328.0,1.18156697]
[1746454760202,0.002,94329.0,94328.0,1.20132708]
[1746454760749,0.01862082,94329.0,94328.0,1.20132708]
[1746454761821,0.01862082,94329.0,94328.0,1.24905003]
[1746454762770,0.01576473,94329.0,94328.0,1.24905003]
[1746454763524,0.01576473,94329.0,94328.0,0.84005003]
[1746454766425,0.002,94349.0,94348.0,0.21198117]
[1746454766741,0.01843701,94349.0,94348.0,0.21198117]
[1746454767098,0.03503701,94349.0,94348.0,0.21198117]
[1746454767310,0.03503701,94349.0,94347.0,0.01454085]
[1746454767311,0.01059905,94348.0,94347.0,0.01454085]
[1746454767530,0.0311,94348.0,94347.0,0.01454085]
[1746454768105,0.0311,94348.0,94347.0,0.22652427]
[1746454768516,0.0311,94348.0,94347.0,0.44330096]
[1746454768976,0.20581541,94349.0,94347.0,0.44330096]
[1746454769176,0.21197965,94349.0,94347.0,0.44330096]
[1746454769425,0.21197965,94349.0,94348.0,0.01976011]
[1746454769633,0.01661848,94349.0,94348.0,0.01976011]
[1746454770080,0.2285974,94349.0,94348.0,0.01976011]
[1746454770286,0.01661848,94349.0,94348.0,0.01976011]
[1746454770458,0.01661848,94349.0,94348.0,0.23174128]
[1746454770868,0.01661848,94349.0,94348.0,0.01976011]
[1746454771269,0.01661848,94349.0,94348.0,0.21198117]
[1746454772233,0.2285974,94349.0,94348.0,0.01984231]
[1746454772416,0.01661848,94349.0,94348.0,0.01984231]
[1746454772612,0.01661848,94349.0,94348.0,0.23182348]
[1746454772877,0.01661848,94349.0,94348.0,0.01984231]
[1746454773219,0.2607974,94349.0,94347.0,0.409]
[1746454773462,0.24418117,94348.0,94347.0,0.409]
[1746454774112,0.24418117,94348.0,94347.0,0.202]
[1746454774323,0.01059984,94341.0,94339.0,0.01454085]
[1746454774520,0.22259638,94342.0,94339.0,0.01454085]
[1746454774729,0.01059962,94343.0,94339.0,0.22654018]
[1746454774972,0.22259455,94342.0,94339.0,0.22654018]
[1746454776170,0.01059973,94342.0,94340.0,0.21199801]
[1746454776421,0.01059973,94342.0,94339.0,0.22654114]
[1746454776665,0.0163,94341.0,94339.0,0.22654114]
[1746454776881,0.0105995,94344.0,94342.0,0.21199461]
[1746454777157,0.22258815,94345.0,94342.0,0.21199461]
[1746454777404,0.23848757,94345.0,94342.0,0.62099461]
[1746454777889,0.21199016,94344.0,94342.0,0.62099461]
[1746454778111,0.23848849,94345.0,94342.0,0.62099461]
[1746454778308,0.23848849,94345.0,94342.0,0.62199461]
[1746454778684,0.23848849,94345.0,94342.0,0.62099461]
[1746454778892,0.21199241,94343.0,94342.0,0.409]
[1746454779102,0.22769016,94344.0,94342.0,0.409]
[1746454779467,0.24431049,94344.0,94342.0,0.409]
[1746454780097,0.21199241,94343.0,94342.0,0.409]
[1746454780965,0.24431049,94344.0,94342.0,0.41]
[1746454781115,0.22699241,94343.0,94342.0,0.41]
[1746454781324,0.24319241,94343.0,94342.0,0.41]
[1746454781563,0.24319241,94343.0,94342.0,0.409]
[1746454781936,0.24319241,94343.0,94342.0,0.41]
[1746454784213,0.24319241,94343.0,94342.0,0.409]
[1746454784745,0.24319241,94343.0,94342.0,0.3105]
[1746454784970,0.21203061,94326.0,94325.0,0.01072476]
[1746454785352,0.21203061,94326.0,94319.0,0.21204425]
[1746454785353,0.01060198,94322.0,94320.0,0.22658281]
[1746454785551,0.01060186,94323.0,94322.0,0.01454085]
[1746454785704,0.01662254,94326.0,94322.0,0.01454085]
[1746454785905,0.01662254,94326.0,94325.0,0.21203286]
[1746454787354,0.01662254,94326.0,94325.0,0.21403286]
[1746454787712,0.01662254,94326.0,94325.0,0.22857371]
[1746454787894,0.01059995,94340.0,94331.0,0.21201722]
[1746454787895,0.22261132,94335.0,94331.0,0.21201722]
[1746454788097,0.0106004,94336.0,94333.0,0.21201391]
[1746454788861,0.2226089,94336.0,94333.0,0.20501391]
[1746454789089,0.2226039,94338.0,94334.0,0.21201263]
[1746454789332,0.2226039,94338.0,94333.0,0.20501391]
[1746454789333,0.0106004,94336.0,94333.0,0.20501391]
[1746454789510,0.02559962,94343.0,94332.0,0.21201713]
[1746454789785,0.02709894,94349.0,94345.0,0.21198577]
[1746454789995,0.22259495,94342.0,94338.0,0.21200231]
[1746454790187,0.01059984,94341.0,94339.0,0.62100077]
[1746454790349,0.22259439,94342.0,94339.0,0.62100077]
[1746454790549,0.01059905,94348.0,94344.0,0.21199003]
[1746454790750,0.01059917,94347.0,94344.0,0.21199003]
[1746454790953,0.01059928,94346.0,94339.0,0.409]
[1746454791417,0.01059928,94346.0,94339.0,0.41860006]
[1746454791868,0.01661898,94348.0,94342.0,0.21199465]
[1746454792206,0.01661898,94348.0,94340.0,0.21199694]
[1746454792207,0.22259248,94343.0,94340.0,0.21199694]
[1746454792379,0.01059928,94346.0,94343.0,0.21199241]
[1746454792583,0.01359928,94346.0,94343.0,0.21199241]
[1746454792787,0.22258794,94345.0,94341.0,0.21199674]
[1746454792939,0.22259037,94344.0,94339.0,0.62]
[1746454793141,0.01059962,94343.0,94340.0,0.2119975]
[1746454793349,0.01059973,94342.0,94339.0,0.62]
[1746454793607,0.22259441,94342.0,94340.0,0.21199871]
[1746454793966,0.22259441,94342.0,94340.0,0.25988443]
[1746454794216,0.2119969,94341.0,94340.0,0.04788572]
[1746454794601,0.2285969,94341.0,94340.0,0.04788572]
[1746454794772,0.2449969,94341.0,94340.0,0.04788572]
[1746454795370,0.2449969,94341.0,94340.0,0.04988572]
[1746454795739,0.2449969,94341.0,94340.0,0.04788572]
[1746454796418,0.22262,94332.0,94329.0,0.21202163]
[1746454796640,0.22261631,94333.0,94330.0,0.21202114]
[1746454796847,0.04995,95915.0,94326.0,0.55202907]
[1746454796848,0.01060006,94339.0,94332.0,0.01060085]
[1746454797075,0.0166,94341.0,94337.0,0.21200464]
[1746454797293,0.01060018,94338.0,94335.0,0.21200904]
[1746454797522,0.01060029,94337.0,94329.0,0.01454085]
[1746454797662,0.003,94341.0,94339.0,0.21199962]
[1746454797844,0.2226065,94337.0,94334.0,0.21201203]
[1746454798081,0.002,94341.0,94334.0,0.21201203]
[1746454798082,0.01059984,94341.0,94338.0,0.21200162]
[1746454798296,0.01059973,94342.0,94335.0,0.21201038]
[1746454798508,0.01059973,94342.0,94340.0,0.21199824]
[1746454798724,0.22259449,94342.0,94340.0,0.21199824]
[1746454798976,0.22259293,94343.0,94340.0,0.21199824]
[1746454799183,0.22259248,94343.0,94340.0,0.21199824]
[1746454799380,0.21200817,94336.0,94334.0,0.001]
[1746454799791,0.01060029,94337.0,94334.0,0.21301204]
[1746454799992,0.01060029,94337.0,94335.0,0.21200941]
[1746454800330,0.42387464,94368.0,94334.0,0.001]
[1746454800331,0.21197474,94351.0,94334.0,0.001]